Cogmind - Beta 13 @@@ ROGUE MODE // 2024.04.24 @ 18:59:22 Player: MarKhan Result: Destroyed by as-42342 with Assembled Heavy Rifle Performance ------------- Evolutions (0) 0 Regions Visited (2) 400 Robots Destroyed (10) 50 Value Destroyed (170) 170 Prototype IDs (0) 0 Alien Tech Used (0) 0 Bonus (0) 0 TOTAL SCORE: 620 Bonus ------- None Cogmind --------- Core Integrity 0/250 Matter 296/300 Energy 123/125 System Corruption 0% Temperature Cool (0) Movement Flying (37) Location -10/Mines Parts ------- > --- POWER (1) -------- Light Ion Engine > --- PROPULSION (2) --- Flight Unit Flight Unit > --- UTILITY (2) ------ Utility Shielding > --- WEAPON (2) ------- Light Assault Rifle Light Assault Rifle > --- INVENTORY (5) ---- Flight Unit Small Storage Unit Light Armor Plating Light Assault Rifle Mining Laser Peak State ------------ > --- POWER ------------ Light Ion Engine > --- PROPULSION ------- Flight Unit Flight Unit > --- UTILITY ---------- Sensor Array Light Armor Plating > --- WEAPON ----------- Medium Laser Small Laser > --- INVENTORY -------- Light Ion Engine Wheel Compact Wheel Small Storage Unit Light Assault Rifle [Rating: 7] Favorites ----------- Power Light Ion Engine Engine Light Ion Engine Propulsion Flight Unit Wheel Compact Wheel Flight Unit Flight Unit Utility Sensor Array Device Sensor Array Storage Small Storage Unit Processor Targeting Computer Protection Utility Shielding Weapon Medium Laser Energy Gun Medium Laser Ballistic Gun Light Assault Rifle Build | -11 -10 -10 ------- Run | Yrd Mat Min Slots Evolved . | . . . Power . | . . . Propulsion . | . . . Utility . | . . . Weapon . | . . . Parts Attached 22 | 6 5 11 Power 5 | 1 2 2 Engine 5 | 1 2 2 Core . | . . . Reactor . | . . . Propulsion 8 | 2 2 4 Treads . | . . . Leg . | . . . Wheel 2 | 2 . . Hover . | . . . Flight 6 | . 2 4 Utility 5 | 1 1 3 Device 1 | . 1 . Storage 1 | 1 . . Processor 1 | . . 1 Hackware . | . . . Protection 2 | . . 2 Artifact . | . . . Weapon 4 | 2 . 2 Energy Gun 2 | 2 . . Energy Cannon . | . . . Ballistic Gun 2 | . . 2 Ballistic Cannon . | . . . Launcher . | . . . Special Weapon . | . . . Impact Weapon . | . . . Slashing Weapon . | . . . Piercing Weapon . | . . . Special Melee Weapon . | . . . Unidentified Prototypes . | . . . Parts Lost 8 | . . 8 Power 1 | . . 1 Propulsion 4 | . . 4 Utility 1 | . . 1 Weapon 2 | . . 2 Highest Loss Streak 7 | . . 7 To Critical Strikes . | . . . Average Slot Usage (%) 86 | . 79 90 Engine 13 | . 13 13 Wheel 4 | . 15 . Flight 22 | . 12 26 Device 7 | . 1 10 Storage 2 | . 7 . Protection 7 | . . 11 Energy Gun 23 | . 28 21 Ballistic Gun 3 | . . 5 Naked Turns . | . . . Heaviest Build 13 | 13 13 10 Greatest Support 26 | 26 26 8 Greatest Overweight (x) 1 | . . 1 Average Overweight (x) . | . . . Largest Inventory Capacity 8 | 8 8 5 Average Capacity 5 | 7 6 5 Most Carried 8 | 6 8 5 Average Carried 4 | 3 5 4 Final Capacity 8 | 8 5 5 Final Carried 6 | 6 5 5 Class Distribution -------------------- 92% | Mutant 7% | Scavenger-Mutant Dominant Class ---------------- Mutant | -10/Materials Mutant | -10/Mines Resources | -11 -10 -10 ----------- Run | Yrd Mat Min Matter Collected 416 | 124 176 116 Remotely . | . . . Salvage Created 239 | . 36 203 Parts 21 | . 5 16 Haulers Intercepted . | . . . Recyclers Shooed . | . . . Parts Field Recycled . | . . . Retrieved Matter . | . . . Parts Self-Destructed . | . . . Prevented . | . . . Kills | -11 -10 -10 ------- Run | Yrd Mat Min Combat Hostiles Destroyed 12 | . 3 9 Guns 12 | . 3 9 Classes Destroyed 3 | . 1 2 Swarmer 8 | . 3 5 Sentry 2 | . . 2 Assembled 2 | . . 2 Best Kill Streak 5 | . 3 5 Combat Bots Only 5 | . 3 5 Max Kills in Single Turn 2 | . 2 2 Gunslinging 1 | . 1 1 Exploded . | . . . Melee . | . . . Uniques/NPCs Destroyed . | . . . Combat | -11 -10 -10 -------- Run | Yrd Mat Min Hostile Shots Fired 98 | . 24 74 Missed 29 | . 4 25 Damage Taken 758 | . 162 596 Core 257 | . 52 205 Absorbed by Shields . | . . . Redirected to Shielding 12 | . . 12 Core Remaining (%) 100 | 100 . . Volleys Fired 35 | . 9 26 Largest 2 | . 2 2 Hottest 90 | . 90 90 Shots Fired 67 | . 18 49 Gun 67 | . 18 49 Cannon . | . . . Launcher . | . . . Special . | . . . Kinetic 20 | . . 20 Thermal 47 | . 18 29 Explosive . | . . . Electromagnetic . | . . . Robot Hit Streak 8 | . 4 8 Robot Miss Streak 4 | . 4 3 Penetration Max . | . . . Secondary Targets 4 | . 1 3 Max Gunslinging Chain 1 | . 1 1 Shots Hit Robots 37 | . 7 30 Core Hits 19 | . 3 16 Critical Kills . | . . . Critical Parts Destroyed . | . . . Critical Strikes . | . . . Melee Attacks . | . . . Impact . | . . . Slashing . | . . . Piercing . | . . . Sneak Attacks . | . . . Combat Hostiles . | . . . Follow-up Attacks . | . . . Damage Inflicted 371 | . 85 286 Guns 371 | . 85 286 Cannons . | . . . Explosions . | . . . Melee . | . . . Ramming . | . . . Kinetic 101 | . . 101 Thermal 270 | . 85 185 Explosive . | . . . Electromagnetic . | . . . Impact . | . . . Slashing . | . . . Piercing . | . . . Highest Corruption . | . . . Average Corruption . | . . . Corruption Purged . | . . . Corruption Blocked . | . . . Overload Shots . | . . . Overflow Damage . | . . . Projectiles . | . . . Explosions . | . . . Melee . | . . . Knockbacks . | . . . Impact . | . . . Kinetic . | . . . Secondary . | . . . Self-Inflicted Damage . | . . . Shots . | . . . Rammed . | . . . Targets Rammed . | . . . Kicked . | . . . Crushed . | . . . Highest Temperature 270 | . 270 227 Average Temperature 96 | . 136 80 Received Heat Transfer 138 | . . 138 Siege Activations . | . . . Robots Corrupted . | . . . Combat Hostiles . | . . . Parts Fried . | . . . Impact Corruptions . | . . . Robots Melted . | . . . Combat Hostiles . | . . . Parts Melted 1 | . . 1 Heat Transferred 695 | . 223 472 Parts Sabotaged . | . . . Parts Stolen . | . . . Parts Stripped . | . . . Power Chain Reactions . | . . . Alert | -11 -10 -10 ------- Run | Yrd Mat Min Peak Influence 218 | . 85 218 Initial 33 | . . 33 Average 87 | . 64 113 Maximum Alert Level 1 | . . 1 Low Security (%) 98 | 100 100 97 Level 1 1 | . . 2 Level 2 . | . . . Level 3 . | . . . Level 4 . | . . . Level 5 . | . . . High Security . | . . . Max Security . | . . . Squads Dispatched 1 | . 1 . Investigation 1 | . 1 . Extermination . | . . . Reinforcement . | . . . Assault . | . . . Garrison . | . . . Intercept . | . . . Searches Triggered . | . . . Construction Impeded . | . . . Haulers Reinforced . | . . . Active Scanning Responses . | . . . Cargo Convoy Interrupts . | . . . Stealth | -11 -10 -10 --------- Run | Yrd Mat Min Distress Signals . | . . . Communications Jammed . | . . . Distress Signals . | . . . Times Spotted 29 | . 4 25 Peak Tracking Total 10 | . 3 10 Tactical Retreats 5 | . 1 4 Traps | -11 -10 -10 ------- Run | Yrd Mat Min Traps Triggered . | . . . Indirectly . | . . . Trap Hack Attempts . | . . . Triggered . | . . . Disarmed . | . . . Reprogrammed . | . . . Reused . | . . . Traps Extracted . | . . . Installed . | . . . Triggered . | . . . Machines | -11 -10 -10 ---------- Run | Yrd Mat Min Machines Disabled . | . . . Max in Single Turn . | . . . Machines Repaired . | . . . Machines Dismantled . | . . . Machines Sabotaged . | . . . Overloaded Fab Kills . | . . . Hacking | -11 -10 -10 --------- Run | Yrd Mat Min Machines Accessed 1 | . 1 . Terminals 1 | . 1 . Fabricators . | . . . Repair Stations . | . . . Recycling Units . | . . . Scanalyzers . | . . . Garrison Access . | . . . Total Hacks 2 | . 2 . Successful . | . . . Failed 2 | . 2 . Catastrophic 1 | . 1 . Database Lockouts . | . . . Manual 1 | . 1 . Terminals 2 | . 2 . Fabricators . | . . . Repair Stations . | . . . Recycling Units . | . . . Scanalyzers . | . . . Garrison Access . | . . . Terminal Hacks . | . . . Fabricator Hacks . | . . . Repair Station Hacks . | . . . Recycling Unit Hacks . | . . . Scanalyzer . | . . . Garrison Access Hacks . | . . . Unauthorized Hacks . | . . . Terminals . | . . . Fabricators . | . . . Repair Stations . | . . . Recycling Units . | . . . Scanalyzers . | . . . Garrison Access . | . . . Data Cores Recovered . | . . . Used . | . . . Hacking Detections 1 | . 1 . Full Trace Events 1 | . 1 . Feedback Events . | . . . Feedback Blocked . | . . . Robot Schematics Acquired . | . . . Robots Built . | . . . Authchips . | . . . Time . | . . . Total Robot Build Rating . | . . . Part Schematics Acquired . | . . . Parts Built . | . . . Authchips . | . . . Time . | . . . Total Part Build Rating . | . . . Parts Repaired . | . . . Time . | . . . Parts Recycled . | . . . Recycled Matter . | . . . Retrieved Matter . | . . . Retrieved Components . | . . . Parts Scanalyzed . | . . . Part Schematics Acquired . | . . . Parts Damaged . | . . . Bothacking | -11 -10 -10 ------------ Run | Yrd Mat Min Used RIF Installer . | . . . Robots Hacked . | . . . Non-combat . | . . . Combat . | . . . Robot Hacks Applied . | . . . Relay Couplers Released . | . . . Fabnet Peak Effective % . | . . . Robots Rewired . | . . . Allies Hacked . | . . . Hacks Repelled . | . . . Allies | -11 -10 -10 -------- Run | Yrd Mat Min Total Allies . | . . . Largest Group . | . . . Highest-Rated Group . | . . . Highest-Rated Ally . | . . . Total Orders . | . . . Ally Attacks . | . . . Total Damage . | . . . Kills . | . . . Allies Corrupted . | . . . Allies Melted . | . . . Intel | -11 -10 -10 ------- Run | Yrd Mat Min Robot Analysis Total . | . . . Derelict Logs Recovered . | . . . Drone Launches . | . . . Drone Recoveries . | . . . Exploration | -11 -10 -10 ------------- Run | Yrd Mat Min Turns Passed 632 | 65 182 385 Spaces Moved 886 | 56 275 555 Core 2 | 1 . 1 Treads . | . . . Legs . | . . . Wheels 126 | 55 71 . Hover . | . . . Flight 758 | . 204 554 Fastest Speed 37 | 50 37 37 Average Speed 47 | 89 50 40 Slowest Speed 120 | 100 90 120 Overloaded Moves . | . . . Propulsion Burnouts . | . . . Robots Hopped 9 | . . 9 Cave-ins Triggered . | . . . Exploration Rate (%) 41 | 5 41 78 Regions Visited 2 Branch Regions 1 Pre-discovered Areas . | . . . Known Exits Taken . | . . . Unknown Exits Taken 2 | 1 1 . Scrap Searched . | . . . Spaces Dug . | . . . Terrain Destroyed . | . . . Melee . | . . . Projectile . | . . . AOE . | . . . Terrain Rammed . | . . . Walls Destroyed . | . . . Machines Disabled . | . . . Actions | -11 -10 -10 --------- Run | Yrd Mat Min Total 1027 | 67 300 660 Wait 65 | . . 65 Move 866 | 55 274 537 Hop 9 | . . 9 Pick Up 15 | 6 3 6 Fast Attach 16 | 6 3 7 Attach 4 | . . 4 Detach 4 | . 2 2 Swap 2 | . 2 . Drop 11 | . 7 4 Fire 35 | . 9 26 Melee . | . . . Ram . | . . . Kick . | . . . Crush . | . . . Escape Stasis . | . . . Rewire . | . . . Trap . | . . . Miscellaneous . | . . . Route ------- -11/Scrapyard -10/Materials (discovered 2 exits: [*Mat] / [*Min]) -10/Mines History --------- Turn | Location | Event 20 | -11/Scrapyard | Discovered new exit (range 16) 66 | -11/Scrapyard | Entered Materials 180 | -10/Materials | Discovered new exit (range 11) 215 | -10/Materials | Discovered new exit (range 12) 248 | -10/Materials | Entered Mines 324 | -10/Mines | Build established: Mutant 438 | -10/Mines | Assembled infested the area 443 | -10/Mines | Assisted by a Guerilla fighting off Assembled 527 | -10/Mines | Core integrity fell below 50% 584 | -10/Mines | Core integrity fell below 20% 599 | -10/Mines | Lost 7 parts (1p3n1u2w) 633 | -10/Mines | Destroyed by as-42342 with Assembled Heavy Rifle Last Messages --------------- Flight Unit destroyed. Acquired Lgt. Assault Rifle. Flight Unit destroyed. as-83487 destroyed. Switching to secondary target: as-42212. Lgt. Ion Engine destroyed. as-42212 destroyed. Acquired 15 matter. Acquired Lgt. Ion Engine. Acquired 19 matter. Acquired 9 matter. Acquired Mining Laser. Acquired 18 matter. Acquired Flight Unit. Acquired Lgt. Assault Rifle. K-01 Serf collects debris. U-05 Engineer lays Concrete. K-01 Serf collects debris. K-01 Serf destroyed. The unstable cave ceiling collapses. Map ----- +----------------------------------------------------+ | ???????????# ###"# #????????????? | | ???????????# ?????????????? | | ???????????####### #?????????????? | | ???????????????# #??????????????? | | ##############?# ! #????????????????? | | % % #?? #% #??????????####???? | | ######## ### #??# # #?????????# ##??? | | #??????# #?# #?## #???????## ##?? | | #?????## ### ### #??????## #?? | | #????## ##??????# ##? | | #????# #??????# #? | | #????# # ### ==##????## #? | | #????# ## #?# !%*###??# #?? | | ?????# ### #?## %=! #### #?? | | ?????### #?# #??## #?? | | ???????# #? ??## #?? | | ???????# # # ## ###### #??? | | ????####%# ##???## #??? | | ????# *## # #?????# #??? | | ????# #### ## # # #??????# ##??? | | ????# #???## ## ### #% ##???????###???? | | ????# #????### ###### #?????????????? | | ????# #??????# #????# #?????????????? | | ????# #??????# ###### #?????????????? | | ##### ##?????# #### ###?????????????? | | " ## ##????###### #??# @#???????????????? | | " # ####??????# ##?#a #???????????????? | | + ##????## ### #???????????????? | | ] + #????# ## #???????????????? | | " # #????# ##??????????????? | | " ## ##????# % ##?????????????? | | ### ###?????# #?????????????? | | ??## ##??????## #?????????????? | | ???# ##?????### #?????????????? | | ???# ###????### #?????????????? | | ???# #?????## #?????????????? | | ???# ####### """ #### !#?????????????? | | ???#= """ #??#!%#?????????????? | | ???# ###### """ #??# | ?????????????? | | ???# #????## #??####?????????????? | | ?### #?????### = #???????????????????? | | ?# #???????## =[% ##???????????????????? | | ?# ###????????###% ###????????????????????? | | ?# #????????????#[!#??????????????????????? | | ?# ####?????????#= ##????##???????????????? | | ## #?????????# ##??# #???????????????? | | # #?????????# ### #????????????????? | | # ####?????????# #????????????????? | | ####????????????## ##????????????????? | | ?????????????????########?????????????????? | +----------------------------------------------------+ Best States ------------- Heat Dissipation 25 Energy Generation 10 Energy Capacity 250 Matter Stores 300 Matter Capacity 300 Sight Range 16 Robot Scan Range 14 Terrain Scan Density 10 Armor Coverage 150 Utility Shielding 33 Evasion (%) 62 Targeting Accuracy 5 Item Schematics ----------------- None Robot Schematics ------------------ None Fabricated ------------ Nothing Alien Tech Used ----------------- None Achievements -------------- None Challenges ------------ None Game ------ Seed FortressFlightFlail Manual? 0 Play Time 00:16:34 Cumulative 7.9 hours Start 2024.04.24 @ 18:43:08 End 2024.04.24 @ 18:59:22 Sessions 1 Manual Loads 0 Difficulty Rogue Special Mode None Game No. 6 Rogue 6 Adventurer 0 Explorer 0 Win Type - Total 0 Types 0/0/0/0/0/0/0/0/0 Lore% 7 Gallery% 11 Achievement% 11 Wizard Run 0 Options --------- Layout 1 ASCII 0 Keyboard 1 Movement Numpad Keybinds 0 Fullscreen 2 Font 24/Smallcaps Map View 50x35 Zoom Use 0% Tactical HUD 0 Map Filters NONE Filters NONE Steam 1 RUN: b888d156-9fde-42a1-a6a7-4afb866f1208